[Event "Slovakian-ch Youth 2022"]
[Site "Lubovna"]
[Date "2022.05.22"]
[Round "2.19"]
[White "Lovcican, Tomas"]
[Black "Vojtas Marek"]
[Result "1-0"]
[ECO "B38"]
[WhiteElo "2024"]
[BlackElo "1000"]
[Annotator "TA"]
[PlyCount "53"]
[EventDate "2022.05.22"]
[EventCountry "SVK"]
[SourceTitle "playchess.com"]
[Source "ChessBase"]
[SourceQuality "1"]
[TimeControl "40/5400+30:1800+30"]

{[%evp 16,53,106,100,119,94,78,41,44,38,37,30,37,17,84,76,229,235,306,213,214,149,141,129,491,506,594,587,675,651,976,958,890,474,29996,29997,29997,29998,29998,29999]} 1. e4 {[%emt 0:00:04]} c5 {[%emt 0:00:10]} 2. Nf3 {[%emt 0:00:07]} Nc6 {[%emt 0:00:08]} 3. d4 {[%emt 0:00:05]} cxd4 {[%emt 0:00:09]} 4. Nxd4 {[%emt 0:00:06]} g6 {[%emt 0:00:49]} 5. c4 {[%emt 0:03:44]} Bg7 {[%emt 0:02:20]} 6. Be3 {[%emt 0:00:30]} e6 {[%emt 0:02:09]} 7. Nc3 {[%emt 0:01:20]} a6 {[%emt 0:01:08]} 8. Be2 {[%emt 0:02:02]} Nge7 {[%emt 0:00:37]} 9. O-O {[%emt 0:02:43]} O-O {[%emt 0:00:43] B38: Sicilian: Maroczy Bind with 5...Bg7 and 7...0-0.} 10. Qd2 {[%emt 0:03:31]} d5 {[%emt 0:02:54]} 11. cxd5 {[%emt 0:06:47]} exd5 {[%emt 0:00:50] White is slightly better.} 12. Nxc6 {[%emt 0:00:43]} bxc6 {[%emt 0:00:25] [#]} 13. Bc5 $146 {[%emt 0:00:05]} ({Predecessor:} 13. exd5 Nxd5 14. Nxd5 Qxd5 15. Qxd5 cxd5 16. Rad1 Bxb2 17. Bf3 Be6 18. Bxd5 Bxd5 19. Rxd5 {½-½ (19) Klimchuk,A (2411)-Semenov,D (2420) Kiev 2017}) 13... Re8 {[%emt 0:04:39]} 14. Rad1 {[%emt 0:00:22]} Bb7 {[%emt 0:03:42]} (14... Be6 $11) 15. Rfe1 {[%emt 0:07:14] White is more active.} Bxc3 $2 {[%emt 0:09:46] [#]} (15... Qa5 $16 16. Bd4 Bxd4 17. Qxd4 Rac8) 16. Qxc3 $18 {[%emt 0:00:40]} (16. bxc3 $6 Qa5 17. Bd4 dxe4 $16) 16... Nc8 {[%emt 0:04:51]} 17. Bf3 {[%emt 0:07:07] A strong pair of Bishops.} Nd6 {[%emt 0:05:57]} 18. Qb4 {[%emt 0:00:42]} ({Resist} 18. exd5 $6 cxd5 19. Bxd5 Bxd5 $16) 18... a5 {[%emt 0:02:30]} 19. Qb3 $36 {[%emt 0:01:00][%mdl 2048] [#] Bxd6 is the strong threat. White is on the roll.} a4 $2 {[%emt 0:08:31][%mdl 8192] A mistake that costs the game.} (19... Rb8 $16 20. a4 (20. exd5 Rxe1+ 21. Rxe1 cxd5 $16) 20... Re6) 20. Qb4 {[%emt 0:00:19]} Nb5 {[%emt 0:01:25]} 21. exd5 {[%emt 0:00:39]} Rxe1+ {[%emt 0:00:58]} 22. Rxe1 {[%emt 0:00:21]} Qd7 {[%emt 0:00:46]} 23. Re7 {[%emt 0:01:55]} Qf5 {[%emt 0:01:44]} 24. Qe4 {[%emt 0:04:03]} Ba6 {[%emt 0:04:27]} (24... Qxe4 $18 25. Bxe4 cxd5 26. Rxb7 dxe4 27. Rxb5 f5) 25. Re8+ {[%emt 0:01:00] White mates.} Rxe8 {[%emt 0:00:20]} 26. Qxe8+ {[%emt 0:00:04]} Kg7 {[%emt 0:00:13]} 27. Bf8+ {[%emt 0:00:06] Weighted Error Value: White=0.46/Black=1.10} 1-0

[Event "Slovakian-ch Youth 2022"]
[Site "Lubovna"]
[Date "2022.05.22"]
[Round "2.20"]
[White "Ondrejcak Gregor"]
[Black "Paluska, Karol"]
[Result "0-1"]
[ECO "B13"]
[WhiteElo "1000"]
[BlackElo "2006"]
[Annotator "TA"]
[PlyCount "46"]
[EventDate "2022.05.22"]
[EventCountry "SVK"]
[SourceTitle "playchess.com"]
[Source "ChessBase"]
[SourceQuality "1"]
[TimeControl "40/5400+30:1800+30"]

{[%evp 17,46,-27,-8,-23,0,-74,-70,-75,-29,-158,-158,-214,-207,-249,-239,-261,-266,-410,-369,-705,-701,-686,-679,-668,-650,-646,-664,-629,-643,-29961,-29954]} 1. e4 {[%emt 0:00:03]} c6 {[%emt 0:00:06]} 2. Nf3 {[%emt 0:00:19]} d5 {[%emt 0:00:05]} 3. exd5 {[%emt 0:00:21]} cxd5 {[%emt 0:00:06]} 4. d4 {[%emt 0:00:25]} Nc6 {[%emt 0:00:17]} 5. Nc3 {[%emt 0:00:37]} Bg4 {[%emt 0:00:12]} 6. h3 {[%emt 0:00:22]} Bh5 {[%emt 0:01:09]} 7. Be2 {[%emt 0:00:36]} e6 {[%emt 0:00:06]} 8. O-O {[%emt 0:01:45]} Nf6 {[%emt 0:00:06]} 9. Bg5 {[%emt 0:00:28]} Be7 {[%emt 0:00:24]} 10. Re1 {[%emt 0:00:37] B13: Caro-Kann: Exchange Variation and Panov-Botvinnik Attack.} O-O {[%emt 0:00:16]} 11. Bxf6 {[%emt 0:02:34]} (11. Ne5 $11 {remains equal.} Bxe2 12. Nxe2) 11... Bxf6 $17 {[%emt 0:00:08]} 12. Ne5 {[%emt 0:00:41] [#] Black is slightly better.} Bg6 $146 {[%emt 0:05:46]} (12... Bxe2 $17 13. Rxe2 Bxe5 14. dxe5 Qb6) ({Predecessor:} 12... Bxe2 13. Rxe2 Qc7 14. f4 Qb6 15. Nd7 Bxd4+ 16. Kh2 Qxb2 17. Nxf8 Qxc3 18. Nxh7 Qxa1 {0-1 (25) Farhat,M-Berti Neto,P (1675) Foz do Iguacu 2011}) 13. Nxg6 {[%emt 0:04:32]} (13. Nxc6 $1 $11 bxc6 14. Na4) 13... hxg6 {[%emt 0:00:07]} 14. Bf3 {[%emt 0:05:50]} (14. Qd2 $17) 14... Nxd4 $19 {[%emt 0:00:29]} 15. g3 {[%emt 0:01:57]} Rc8 {[%emt 0:00:13]} 16. Bg2 {[%emt 0:00:47]} Nf5 {[%emt 0:01:22]} 17. Nb5 {[%emt 0:07:05]} (17. Ne2 $142) 17... a6 {[%emt 0:00:30]} 18. Na3 {[%emt 0:02:06] [#]} (18. Nc3) 18... Bxb2 {[%emt 0:00:10]} 19. Rb1 {[%emt 0:01:13]} Bxa3 {[%emt 0:00:04]} 20. Rxb7 {[%emt 0:00:20]} Rb8 {[%emt 0:00:50]} 21. Rb3 {[%emt 0:00:49]} Rxb3 {[%emt 0:00:14]} 22. axb3 {[%emt 0:00:40]} Qb6 {[%emt 0:00:34]} 23. Kh1 {[%emt 0:01:05]} Qxf2 {[%emt 0:00:17] Weighted Error Value: White=1.18/Black=0.14 (very precise)} 0-1

[Event "Slovakian-ch Youth 2022"]
[Site "Lubovna"]
[Date "2022.05.22"]
[Round "2.21"]
[White "Horvath, Marek"]
[Black "Papp, Gabor"]
[Result "1-0"]
[ECO "D35"]
[WhiteElo "1801"]
[BlackElo "2564"]
[Annotator "TA"]
[PlyCount "99"]
[EventDate "2022.05.22"]
[EventCountry "SVK"]
[SourceTitle "playchess.com"]
[Source "ChessBase"]
[SourceQuality "1"]
[TimeControl "40/5400+30:1800+30"]

{[%evp 17,99,10,29,0,11,0,25,7,18,14,30,0,3,0,43,37,30,35,17,29,50,47,49,54,123,119,122,114,248,248,264,259,266,267,290,279,295,293,322,281,283,276,279,275,325,321,408,414,406,398,406,414,379,372,497,490,472,458,465,458,841,826,5202,2307,29969,29968,29938,6127,29987,29988,29990,29990,29994,29991,29991,29992,29992,29993,29995,29996,29996,29997,29997,29998]} 1. d4 {[%emt 0:00:04]} d5 {[%emt 0:01:15]} 2. c4 {[%emt 0:00:07]} e6 {[%emt 0:00:04]} 3. Nf3 {[%emt 0:00:12]} Nf6 {[%emt 0:00:03]} 4. Nc3 {[%emt 0:00:12]} Be7 {[%emt 0:00:26]} 5. Bg5 {[%emt 0:00:18]} Nbd7 {[%emt 0:00:07]} 6. e3 {[%emt 0:00:15]} O-O {[%emt 0:00:20]} 7. Bd3 {[%emt 0:00:13]} c6 {[%emt 0:00:44]} 8. cxd5 {[%emt 0:00:38]} exd5 {[%emt 0:00:02]} 9. O-O {[%emt 0:00:12]} Re8 {[%emt 0:00:12]} 10. Nd2 {[%emt 0:12:37] D35: Queen's Gambit Declined: Exchange Variation.} Nf8 {[%emt 0:00:44]} 11. Rb1 {[%emt 0:01:12] [#]} Be6 $146 {[%emt 0:02:02]} ({Predecessor:} 11... a5 12. a3 Ng6 13. b4 h6 14. Bxf6 Bxf6 15. Qc2 Nf8 16. b5 Qd6 17. bxc6 bxc6 {1-0 (31) Li,X (2167)-Latifah,L (1897) Chess.com INT 2021}) 12. b4 {[%emt 0:00:31] White has an edge.} a6 {[%emt 0:00:05]} (12... h6 $5 {[%cal Rh6g5]} 13. Bxf6 Bxf6 $11) 13. a4 {[%emt 0:00:58]} Qd7 {[%emt 0:00:57]} 14. b5 {[%emt 0:01:07]} axb5 {[%emt 0:00:04]} 15. axb5 {[%emt 0:00:07]} Bf5 {[%emt 0:01:55]} 16. bxc6 {[%emt 0:09:21]} bxc6 {[%emt 0:00:06]} 17. Nf3 {[%emt 0:03:50]} Bxd3 {[%emt 0:00:56]} 18. Qxd3 {[%emt 0:00:06]} Ne4 {[%emt 0:09:03]} 19. Ne5 {[%emt 0:06:58]} (19. Nxe4 $2 dxe4 20. Qxe4 Bxg5 $17) 19... Qe6 {[%emt 0:04:07]} 20. Bxe7 {[%emt 0:00:19]} ({Worse is} 20. Nxe4 dxe4 21. Qxe4 Bxg5 $17) 20... Rxe7 {[%emt 0:00:10]} ({Black should play} 20... Qxe7 $14 21. Qc2 (21. Nxe4 dxe4 22. Qc2 c5 $14) (21. Nxc6 Qa3 $17) 21... Nxc3 22. Qxc3 c5) 21. Nxe4 $16 {[%emt 0:00:06]} dxe4 {[%emt 0:00:16]} 22. Qxe4 {[%emt 0:00:07]} f6 {[%emt 0:02:53] This move loses the game for Black.} (22... Rc8 $16) 23. Qxc6 $18 {[%emt 0:00:26]} Ra6 {[%emt 0:08:46]} 24. Qxe6+ {[%emt 0:00:09]} Raxe6 {[%emt 0:00:19]} 25. Nd3 {[%emt 0:00:28]} Nd7 {[%emt 0:00:59]} 26. Rfc1 {[%emt 0:00:15]} Nb6 {[%emt 0:00:45]} 27. Rb5 {[%emt 0:02:58]} Kf7 {[%emt 0:02:10]} 28. Nc5 {[%emt 0:00:40]} Rc6 {[%emt 0:00:27]} 29. Rcb1 {[%emt 0:00:30]} Nd5 {[%emt 0:01:05]} 30. Rb7 {[%emt 0:03:31]} Rxb7 {[%emt 0:01:31]} 31. Rxb7+ {[%emt 0:02:53]} Rc7 {[%emt 0:00:06]} 32. Rxc7+ {[%emt 0:00:28]} Nxc7 {[%emt 0:00:02][%mdl 4096] Endgame KN-KN} 33. Kf1 {[%emt 0:00:17]} Ke7 {[%emt 0:00:33]} 34. Ke2 {[%emt 0:00:08]} Kd6 {[%emt 0:00:16]} 35. Kd3 {[%emt 0:00:09]} f5 {[%emt 0:00:13]} 36. f3 {[%emt 0:00:35]} Nd5 {[%emt 0:00:32]} 37. g3 {[%emt 0:00:23]} g6 {[%emt 0:01:12]} 38. e4 {[%emt 0:00:19]} Nb4+ {[%emt 0:00:49]} (38... Nb6 $142 39. h3 Nc8) 39. Kc4 {[%emt 0:00:12]} Nc2 {[%emt 0:00:28]} 40. e5+ {[%emt 0:00:38]} Ke7 {[%emt 0:00:03]} 41. d5 {[%emt 0:31:08][%cal Bd4d5,Bd5d6][%mdl 32]} Ne3+ {[%emt 0:30:31]} 42. Kd4 {[%emt 0:00:22]} Nf1 {[%emt 0:00:02]} 43. d6+ {[%emt 0:00:14] White mates.} Kd8 {[%emt 0:00:25]} 44. e6 {[%emt 0:00:25]} Nxh2 {[%emt 0:00:27]} 45. e7+ {[%emt 0:00:18]} Ke8 {[%emt 0:00:06]} 46. Ne6 {[%emt 0:00:07]} Nxf3+ {[%emt 0:00:29]} 47. Kd5 {[%emt 0:00:11]} h5 {[%emt 0:01:47]} 48. Nc7+ {[%emt 0:00:05]} Kf7 {[%emt 0:00:12]} 49. e8=Q+ {[%emt 0:00:09]} Kg7 {[%emt 0:00:15]} 50. Ne6+ {[%emt 0:00:29] Weighted Error Value: White=0.07 (flawless) /Black=0.65} 1-0

[Event "Slovakian-ch Youth 2022"]
[Site "Lubovna"]
[Date "2022.05.22"]
[Round "2.22"]
[White "Rakovsky, Jakub"]
[Black "Baron, Patrik"]
[Result "1-0"]
[ECO "B12"]
[WhiteElo "1888"]
[BlackElo "1740"]
[Annotator "NA RC COMBH"]
[PlyCount "107"]
[EventDate "2022.05.22"]
[EventCountry "SVK"]
[SourceTitle "playchess.com"]
[Source "ChessBase"]
[SourceQuality "1"]
[TimeControl "40/5400+30:1800+30"]

1. e4 {[%emt 0:00:15]} c6 {[%emt 0:01:52]} 2. d4 {[%emt 0:00:07]} d5 {[%emt 0:00:05]} 3. e5 {[%emt 0:00:05]} Bf5 {[%emt 0:00:06]} 4. h4 {[%emt 0:01:20]} h5 {[%emt 0:00:07]} 5. Bd3 {[%emt 0:00:38]} Bxd3 {[%emt 0:00:15]} 6. Qxd3 {[%emt 0:00:08]} e6 {[%emt 0:00:10]} 7. Ne2 {[%emt 0:06:53]} c5 {[%emt 0:04:24]} 8. c3 {[%emt 0:02:58]} Nc6 {[%emt 0:01:51]} 9. a3 {[%emt 0:04:57]} c4 {[%emt 0:13:41]} 10. Qd1 {[%emt 0:04:52]} Nge7 {[%emt 0:03:47]} 11. Ng3 {[%emt 0:07:09]} Na5 {[%emt 0:07:03]} 12. Nd2 {[%emt 0:11:07]} Rc8 {[%emt 0:06:51]} 13. Nxh5 {[%emt 0:03:25]} Nf5 {[%emt 0:09:01]} 14. g3 {[%emt 0:04:51]} Be7 {[%emt 0:03:12]} 15. Qf3 {[%emt 0:06:18]} Kd7 {[%emt 0:12:11]} 16. g4 {[%emt 0:05:33]} Nxh4 {[%emt 0:03:51]} 17. Qxf7 {[%emt 0:00:09]} Qf8 {[%emt 0:04:44]} 18. Qxf8 {[%emt 0:03:02]} Rcxf8 {[%emt 0:00:19]} 19. Ke2 {[%emt 0:02:47]} g6 {[%emt 0:11:27]} 20. Ng3 {[%emt 0:00:43]} g5 {[%emt 0:03:58]} 21. Nh5 {[%emt 0:14:51]} Rf7 {[%emt 0:01:05]} 22. Rb1 {[%emt 0:02:53]} Rhf8 {[%emt 0:02:27]} 23. Rf1 {[%emt 0:04:35]} Ng6 {[%emt 0:03:27]} 24. f3 {[%emt 0:01:08]} Nh4 {[%emt 0:02:00]} 25. b3 {[%emt 0:04:28]} cxb3 {[%emt 0:00:50]} 26. Nxb3 {[%emt 0:00:15]} Nc4 {[%emt 0:01:53]} 27. Nf6+ {[%emt 0:02:25]} Bxf6 {[%emt 0:00:45]} 28. exf6 {[%emt 0:01:20]} Rxf6 {[%emt 0:00:29]} 29. Bxg5 {[%emt 0:02:06]} Rxf3 {[%emt 0:00:34]} 30. Nc5+ {[%emt 0:01:00]} Kc6 {[%emt 0:01:13]} 31. Rxf3 {[%emt 0:00:10]} Nxf3 {[%emt 0:01:13]} 32. Rf1 {[%emt 0:00:14]} Nxd4+ {[%emt 0:00:40]} 33. cxd4 {[%emt 0:00:08]} Rxf1 {[%emt 0:00:46]} 34. Kxf1 {[%emt 0:00:07]} e5 {[%emt 0:00:12]} 35. Nb3 {[%emt 0:00:25]} b6 {[%emt 0:00:55]} 36. Bc1 {[%emt 0:02:09]} a5 {[%emt 0:00:22]} 37. Ke2 {[%emt 0:00:57]} a4 {[%emt 0:00:13]} 38. Nd2 {[%emt 0:00:07]} exd4 {[%emt 0:00:54]} 39. Nf3 {[%emt 0:01:46]} Kc5 {[%emt 0:00:32]} 40. Kd3 {[%emt 0:00:29]} Nd6 {[%emt 0:00:30]} 41. Nxd4 {[%emt 0:30:18]} b5 {[%emt 0:03:22]} 42. Bd2 {[%emt 0:00:00]} Ne4 {[%emt 0:02:04]} 43. Bb4+ {[%emt 0:00:00]} Kb6 {[%emt 0:00:20]} 44. Ke3 {[%emt 0:00:00]} Nf6 {[%emt 0:01:01]} 45. g5 {[%emt 0:00:00]} Nh7 {[%emt 0:01:24]} 46. g6 {[%emt 0:00:00]} Nf6 {[%emt 0:00:18]} 47. Kf4 {[%emt 0:00:00]} Ng8 {[%emt 0:01:25]} 48. Ke5 {[%emt 0:00:00]} Nh6 {[%emt 0:00:33]} 49. g7 {[%emt 0:00:00]} Ng8 {[%emt 0:00:08]} 50. Nf5 {[%emt 0:00:00]} Kc7 {[%emt 0:00:50]} 51. Ne7 {[%emt 0:00:00]} Nh6 {[%emt 0:00:19]} 52. Bd2 {[%emt 0:00:00]} Kd7 {[%emt 0:00:38]} 53. Bxh6 {[%emt 0:00:00]} Kxe7 {[%emt 0:00:11]} 54. g8=Q {[%emt 0:00:00]} 1-0

[Event "Slovakian-ch Youth 2022"]
[Site "Lubovna"]
[Date "2022.05.22"]
[Round "2.23"]
[White "Lakota, Jan"]
[Black "Orgon, Patrik"]
[Result "0-1"]
[ECO "B01"]
[WhiteElo "1488"]
[BlackElo "1721"]
[Annotator "NA COMBH"]
[PlyCount "44"]
[EventDate "2022.05.22"]
[EventCountry "SVK"]
[SourceTitle "playchess.com"]
[Source "ChessBase"]
[SourceQuality "1"]
[TimeControl "40/5400+30:1800+30"]

1. e4 {[%emt 0:00:04]} d5 {[%emt 0:00:12]} 2. exd5 {[%emt 0:00:28]} Qxd5 {[%emt 0:00:07]} 3. Nc3 {[%emt 0:00:27]} Qa5 {[%emt 0:00:07]} 4. d4 {[%emt 0:00:33]} Nf6 {[%emt 0:00:07]} 5. Nf3 {[%emt 0:00:39]} Bf5 {[%emt 0:01:05]} 6. Bd2 {[%emt 0:01:27]} c6 {[%emt 0:01:20]} 7. Bc4 {[%emt 0:01:21]} Qc7 {[%emt 0:06:38]} 8. Ne5 {[%emt 0:09:03]} e6 {[%emt 0:00:48]} 9. h4 {[%emt 0:00:54]} h5 {[%emt 0:09:34]} 10. Qf3 {[%emt 0:11:04]} Nbd7 {[%emt 0:15:18]} 11. Bf4 {[%emt 0:12:49]} Nxe5 {[%emt 0:04:45]} 12. Qg3 {[%emt 0:09:05]} O-O-O {[%emt 0:12:18]} 13. Bxe5 {[%emt 0:04:30]} Bd6 {[%emt 0:00:26]} 14. O-O-O {[%emt 0:05:58]} Bxe5 {[%emt 0:06:45]} 15. dxe5 {[%emt 0:03:33]} Ng4 {[%emt 0:03:49]} 16. Rhe1 {[%emt 0:08:44]} Qb6 {[%emt 0:04:42]} 17. f4 {[%emt 0:13:03]} Rxd1+ {[%emt 0:03:46]} 18. Nxd1 {[%emt 0:00:21]} Qd4 {[%emt 0:03:10]} 19. Bb3 {[%emt 0:02:49]} Rd8 {[%emt 0:02:00]} 20. Ne3 {[%emt 0:02:18]} Qd2+ {[%emt 0:02:20]} 21. Kb1 {[%emt 0:00:16]} Nxe3 {[%emt 0:00:50]} 22. Qxe3 {[%emt 0:00:15]} Qxe3 {[%emt 0:00:09]} 0-1

[Event "Slovakian-ch Youth 2022"]
[Site "Lubovna"]
[Date "2022.05.22"]
[Round "2.24"]
[White "Jurky, Marian"]
[Black "Tokarcik, Patrik"]
[Result "1-0"]
[ECO "B07"]
[WhiteElo "1689"]
[BlackElo "1591"]
[Annotator "NA COMBH"]
[PlyCount "73"]
[EventDate "2022.05.22"]
[EventCountry "SVK"]
[SourceTitle "playchess.com"]
[Source "ChessBase"]
[SourceQuality "1"]
[TimeControl "40/5400+30:1800+30"]

1. e4 {[%emt 0:00:02]} d6 {[%emt 0:01:50]} 2. d4 {[%emt 0:00:06]} Nf6 {[%emt 0:00:05]} 3. Nc3 {[%emt 0:00:05]} g6 {[%emt 0:01:02]} 4. Be3 {[%emt 0:01:17]} Bg7 {[%emt 0:02:50]} 5. Qd2 {[%emt 0:00:10]} h6 {[%emt 0:01:27]} 6. f3 {[%emt 0:01:07]} c6 {[%emt 0:03:12]} 7. a4 {[%emt 0:03:52]} Qa5 {[%emt 0:05:22]} 8. Nge2 {[%emt 0:03:21]} Nbd7 {[%emt 0:01:51]} 9. Nc1 {[%emt 0:01:22]} Qc7 {[%emt 0:06:13]} 10. Nb3 {[%emt 0:03:50]} a5 {[%emt 0:02:13]} 11. Be2 {[%emt 0:05:40]} Nb6 {[%emt 0:01:48]} 12. d5 {[%emt 0:10:47]} cxd5 {[%emt 0:03:30]} 13. Nb5 {[%emt 0:00:09]} Qd8 {[%emt 0:04:34]} 14. Bxb6 {[%emt 0:01:46]} Qxb6 {[%emt 0:00:18]} 15. exd5 {[%emt 0:00:13]} O-O {[%emt 0:02:55]} 16. c4 {[%emt 0:15:09]} Nd7 {[%emt 0:05:56]} 17. Rc1 {[%emt 0:11:15]} Nc5 {[%emt 0:04:03]} 18. Nxc5 {[%emt 0:00:19]} Qxc5 {[%emt 0:00:09]} 19. h4 {[%emt 0:12:34]} Bd7 {[%emt 0:07:00]} 20. g4 {[%emt 0:01:30]} Qb4 {[%emt 0:06:46]} 21. Qxb4 {[%emt 0:00:23]} axb4 {[%emt 0:00:05]} 22. b3 {[%emt 0:00:06]} Rfc8 {[%emt 0:01:44]} 23. Kd2 {[%emt 0:03:08]} Bxb5 {[%emt 0:04:53]} 24. cxb5 {[%emt 0:03:49]} Rc3 {[%emt 0:02:02]} 25. Rxc3 {[%emt 0:00:15]} bxc3+ {[%emt 0:00:06]} 26. Kc2 {[%emt 0:00:05]} b6 {[%emt 0:01:06]} 27. Ra1 {[%emt 0:00:09]} e6 {[%emt 0:01:30]} 28. dxe6 {[%emt 0:04:05]} fxe6 {[%emt 0:01:48]} 29. b4 {[%emt 0:00:18]} Bd4 {[%emt 0:08:02]} 30. a5 {[%emt 0:00:44]} bxa5 {[%emt 0:01:14]} 31. bxa5 {[%emt 0:00:11]} d5 {[%emt 0:02:49]} 32. Ra4 {[%emt 0:01:08]} e5 {[%emt 0:01:55]} 33. Rxd4 {[%emt 0:04:22]} exd4 {[%emt 0:00:15]} 34. a6 {[%emt 0:00:30]} Re8 {[%emt 0:01:31]} 35. Bd3 {[%emt 0:00:07]} Re1 {[%emt 0:03:18]} 36. a7 {[%emt 0:00:04]} Ra1 {[%emt 0:00:07]} 37. b6 {[%emt 0:00:02]} 1-0

[Event "Slovakian-ch Youth 2022"]
[Site "Lubovna"]
[Date "2022.05.22"]
[Round "2.25"]
[White "Volanek, Maros"]
[Black "Filo, David"]
[Result "1-0"]
[ECO "E12"]
[WhiteElo "1458"]
[BlackElo "1653"]
[Annotator "NA COMBH"]
[PlyCount "89"]
[EventDate "2022.05.22"]
[EventCountry "SVK"]
[SourceTitle "playchess.com"]
[Source "ChessBase"]
[SourceQuality "1"]
[TimeControl "40/5400+30:1800+30"]

1. d4 {[%emt 0:00:04]} Nf6 {[%emt 0:00:15]} 2. Nf3 {[%emt 0:00:16]} e6 {[%emt 0:00:28]} 3. c4 {[%emt 0:00:13]} b6 {[%emt 0:00:30]} 4. Bf4 {[%emt 0:01:01]} Bb7 {[%emt 0:01:11]} 5. e3 {[%emt 0:01:23]} Be7 {[%emt 0:01:02]} 6. Nc3 {[%emt 0:00:43]} d6 {[%emt 0:03:05]} 7. Be2 {[%emt 0:02:51]} Nbd7 {[%emt 0:02:51]} 8. O-O {[%emt 0:03:45]} O-O {[%emt 0:01:55]} 9. Rc1 {[%emt 0:07:29]} Nh5 {[%emt 0:14:24]} 10. Bg3 {[%emt 0:03:08]} Nxg3 {[%emt 0:01:49]} 11. hxg3 {[%emt 0:00:07]} f5 {[%emt 0:05:27]} 12. Qb3 {[%emt 0:05:49]} Rf6 {[%emt 0:19:36]} 13. Rfd1 {[%emt 0:09:55]} Qe8 {[%emt 0:07:55]} 14. Ng5 {[%emt 0:10:42]} Kh8 {[%emt 0:11:12]} 15. c5 {[%emt 0:08:26]} Nf8 {[%emt 0:06:41]} 16. Nb5 {[%emt 0:06:01]} Qd8 {[%emt 0:03:50]} 17. cxd6 {[%emt 0:04:50]} Bxd6 {[%emt 0:00:49]} 18. Bc4 {[%emt 0:07:37]} Qe7 {[%emt 0:01:31]} 19. d5 {[%emt 0:05:31]} e5 {[%emt 0:02:29]} 20. Ne6 {[%emt 0:03:41]} Nxe6 {[%emt 0:00:34]} 21. dxe6 {[%emt 0:00:08]} f4 {[%emt 0:02:25]} 22. gxf4 {[%emt 0:02:14]} exf4 {[%emt 0:00:18]} 23. Nxd6 {[%emt 0:01:45]} cxd6 {[%emt 0:00:11]} 24. exf4 {[%emt 0:01:07]} Rxf4 {[%emt 0:01:01]} 25. Bd5 {[%emt 0:00:23]} Bxd5 {[%emt 0:01:17]} 26. Qxd5 {[%emt 0:00:17]} Re8 {[%emt 0:00:50]} 27. Qxd6 {[%emt 0:00:21]} Rff8 {[%emt 0:01:37]} 28. Qxe7 {[%emt 0:02:18]} Rxe7 {[%emt 0:00:09]} 29. Rc6 {[%emt 0:01:43]} g6 {[%emt 0:00:58]} 30. Rd7 {[%emt 0:03:58]} Rfe8 {[%emt 0:00:38]} 31. Rcc7 {[%emt 0:00:15]} Rxe6 {[%emt 0:00:41]} 32. Rxh7+ {[%emt 0:00:14]} Kg8 {[%emt 0:00:10]} 33. Rcg7+ {[%emt 0:00:05]} Kf8 {[%emt 0:00:14]} 34. Rxa7 {[%emt 0:00:07]} Kg8 {[%emt 0:01:12]} 35. Rhg7+ {[%emt 0:01:27]} Kh8 {[%emt 0:00:11]} 36. g3 {[%emt 0:00:37]} Rc8 {[%emt 0:00:32]} 37. Rgc7 {[%emt 0:02:05]} Rb8 {[%emt 0:01:08]} 38. Rcb7 {[%emt 0:00:29]} Rc8 {[%emt 0:00:35]} 39. Ra6 {[%emt 0:00:13]} Rg8 {[%emt 0:00:55]} 40. Rbxb6 {[%emt 0:00:34]} Re1+ {[%emt 0:00:08]} 41. Kg2 {[%emt 0:30:17]} Kh7 {[%emt 0:30:14]} 42. b3 {[%emt 0:02:06]} Rb1 {[%emt 0:00:34]} 43. Rf6 {[%emt 0:03:53]} Rg7 {[%emt 0:00:31]} 44. Rf4 {[%emt 0:01:01]} Rb2 {[%emt 0:00:14]} 45. Rh4+ {[%emt 0:00:19]} 1-0

[Event "Slovakian-ch Youth 2022"]
[Site "Lubovna"]
[Date "2022.05.22"]
[Round "2.26"]
[White "Sustek, Adam"]
[Black "Havalda, Samuel"]
[Result "1-0"]
[ECO "C24"]
[WhiteElo "1636"]
[BlackElo "1465"]
[Annotator "NA COMBH"]
[PlyCount "64"]
[EventDate "2022.05.22"]
[EventCountry "SVK"]
[SourceTitle "playchess.com"]
[Source "ChessBase"]
[SourceQuality "1"]
[TimeControl "40/5400+30:1800+30"]

1. e4 {[%emt 0:00:09]} e5 {[%emt 0:00:12]} 2. Nf3 {[%emt 0:00:06]} Nc6 {[%emt 0:00:10]} 3. Bc4 {[%emt 0:00:13]} Nf6 {[%emt 0:00:22]} 4. d3 {[%emt 0:00:13]} d5 {[%emt 0:03:40]} 5. exd5 {[%emt 0:01:34]} Nxd5 {[%emt 0:00:12]} 6. h3 {[%emt 0:02:00]} Be6 {[%emt 0:01:17]} 7. O-O {[%emt 0:02:54]} Qd7 {[%emt 0:01:38]} 8. Re1 {[%emt 0:03:46]} Bd6 {[%emt 0:41:39]} 9. Bb5 {[%emt 0:02:43]} f6 {[%emt 0:03:14]} 10. d4 {[%emt 0:02:37]} O-O-O {[%emt 0:00:13]} 11. c4 {[%emt 0:12:39]} Bxh3 {[%emt 0:03:33]} 12. gxh3 {[%emt 0:09:40]} Qxh3 {[%emt 0:00:39]} 13. Bxc6 {[%emt 0:09:55]} bxc6 {[%emt 0:05:15]} 14. cxd5 {[%emt 0:05:11]} e4 {[%emt 0:03:52]} 15. Rxe4 {[%emt 0:02:35]} g5 {[%emt 0:02:17]} 16. dxc6 {[%emt 0:08:06]} Rde8 {[%emt 0:04:25]} 17. Qe2 {[%emt 0:19:25]} Kd8 {[%emt 0:01:16]} 18. Rxe8+ {[%emt 0:04:16]} Rxe8 {[%emt 0:00:11]} 19. Be3 {[%emt 0:02:22]} g4 {[%emt 0:00:40]} 20. Qf1 {[%emt 0:01:06]} Qxf3 {[%emt 0:01:28]} 21. Nd2 {[%emt 0:01:50]} Qf5 {[%emt 0:03:06]} 22. Nc4 {[%emt 0:02:10]} h5 {[%emt 0:15:30]} 23. Nxd6 {[%emt 0:00:43]} cxd6 {[%emt 0:00:08]} 24. c7+ {[%emt 0:01:52]} Kxc7 {[%emt 0:02:33]} 25. Qc4+ {[%emt 0:00:07]} Kd8 {[%emt 0:00:19]} 26. Rc1 {[%emt 0:00:18]} Ke7 {[%emt 0:03:10]} 27. Qc7+ {[%emt 0:01:04]} Ke6 {[%emt 0:00:06]} 28. Re1 {[%emt 0:00:27]} Qb5 {[%emt 0:01:33]} 29. Bd2+ {[%emt 0:01:26]} Kd5 {[%emt 0:00:19]} 30. Qf7+ {[%emt 0:00:22]} Kxd4 {[%emt 0:00:11]} 31. Bc3+ {[%emt 0:01:25]} Kc5 {[%emt 0:01:13]} 32. Qxe8 {[%emt 0:00:39]} Qxe8 {[%emt 0:00:31]} 1-0